[Event "Polish Youth 1st League 2022"]
[Site "Lublin"]
[Date "2022.07.03"]
[Round "9.25"]
[White "Luczak, Filip"]
[Black "Suder, Jakub"]
[Result "1/2-1/2"]
[ECO "E06"]
[WhiteElo "2311"]
[BlackElo "2306"]
[Annotator "TA"]
[PlyCount "61"]
[EventDate "2022.06.24"]
[EventType "team-tourn"]
[EventCountry "POL"]
[SourceTitle "playchess.com"]
[Source "ChessBase"]
[SourceQuality "1"]
[TimeControl "40/5400+30:1800+30"]

{[%evp 19,61,0,0,0,32,31,33,33,39,35,41,41,72,83,56,37,38,42,49,40,41,29,33,25,42,0,2,0,0,0,0,0,0,0,0,0,2,2,2,0,0,0,0,0]} 1. d4 {[%emt 0:00:01]} d5 {[%emt 0:00:09]} 2. Nf3 {[%emt 0:00:03]} e6 {[%emt 0:00:42]} 3. c4 {[%emt 0:00:03]} Nf6 {[%emt 0:02:26]} 4. g3 {[%emt 0:00:13]} Be7 {[%emt 0:00:06]} 5. Bg2 {[%emt 0:00:03]} O-O {[%emt 0:00:06]} 6. O-O {[%emt 0:00:02]} dxc4 {[%emt 0:00:05]} 7. Ne5 {[%emt 0:00:01]} Nc6 {[%emt 0:00:06]} 8. Nxc6 {[%emt 0:00:03]} bxc6 {[%emt 0:00:04]} 9. Na3 {[%emt 0:00:04]} Bxa3 {[%emt 0:00:05]} 10. bxa3 {[%emt 0:00:00]} Ba6 {[%emt 0:02:14]} 11. Qd2 {[%emt 0:00:05] E05: Open Catalan: 5 Nf3 Be7.} c3 {[%emt 0:05:40]} 12. Qxc3 {[%emt 0:00:04]} Bxe2 {[%emt 0:00:09]} 13. Re1 {[%emt 0:00:03] White is slightly better.} Bh5 {[%emt 0:06:07]} 14. a4 {[%emt 0:08:35]} Nd5 {[%emt 0:02:00]} 15. Qxc6 {[%emt 0:01:40] [#]} Rb8 $146 {[%emt 0:06:17]} ({Predecessor:} 15... Qd6 16. Qxd6 cxd6 17. Ba3 Rfd8 18. Rac1 Rab8 19. Bxd5 exd5 20. Kg2 Bg6 21. Re7 a6 {½-½ (41) Erigaisi,A (2359)-Barua,D (2448) Mumbai 2018}) 16. Ba3 {[%emt 0:02:58] This bishop pair is nice.} Re8 {[%emt 0:00:20]} 17. Rab1 {[%emt 0:01:57]} Rxb1 {[%emt 0:03:46]} 18. Rxb1 {[%emt 0:00:04]} Qa8 {[%emt 0:02:27]} 19. Qxa8 {[%emt 0:06:32]} Rxa8 {[%emt 0:00:06]} 20. a5 {[%emt 0:03:27]} Be2 {[%emt 0:01:52]} 21. Bc5 {[%emt 0:04:40][%cal Oc5a7] aiming for Bxa7!} a6 {[%emt 0:01:55]} 22. a4 {[%emt 0:08:35]} g5 {[%emt 0:02:34] The position is equal.} 23. Rb2 {[%emt 0:14:10]} Bd1 {[%emt 0:02:07]} 24. Rb7 {[%emt 0:05:09]} Bxa4 {[%emt 0:03:21]} 25. Bxd5 {[%emt 0:00:10]} exd5 {[%emt 0:00:04]} 26. Rxc7 $11 {[%emt 0:00:01] KRB-KRB} g4 {[%emt 0:01:31]} 27. Re7 {[%emt 0:00:21][%cal Oh2h3]} Re8 {[%emt 0:00:12]} 28. Rxe8+ {[%emt 0:00:06]} Bxe8 {[%emt 0:00:04]} 29. Kf1 {[%emt 0:00:03]} Kg7 {[%emt 0:00:16]} 30. Ke2 {[%emt 0:00:02]} Kf6 {[%emt 0:00:15]} 31. Ke3 {[%emt 0:00:03] Weighted Error Value: White=0.04 (flawless) /Black=0.03 (flawless)} 1/2-1/2

[Event "Polish Youth 1st League 2022"]
[Site "Lublin"]
[Date "2022.07.03"]
[Round "9.26"]
[White "Dziewonski, Dariusz"]
[Black "Bachor, Tomasz"]
[Result "0-1"]
[ECO "B10"]
[WhiteElo "1976"]
[BlackElo "1971"]
[Annotator "NA RC"]
[PlyCount "56"]
[EventDate "2022.06.24"]
[EventType "team-tourn"]
[EventCountry "POL"]
[SourceTitle "playchess.com"]
[Source "ChessBase"]
[SourceQuality "1"]
[TimeControl "40/5400+30:1800+30"]

1. e4 {[%emt 0:00:03]} c6 {[%emt 0:00:13]} 2. Nc3 {[%emt 0:00:07]} d5 {[%emt 0:00:56]} 3. Nf3 {[%emt 0:00:05]} g6 {[%emt 0:03:46]} 4. d4 {[%emt 0:00:53]} Bg7 {[%emt 0:00:33]} 5. h3 {[%emt 0:00:05]} Nf6 {[%emt 0:00:37]} 6. exd5 {[%emt 0:07:23]} cxd5 {[%emt 0:01:51]} 7. Bf4 {[%emt 0:00:38]} a6 {[%emt 0:03:23]} 8. Qd2 {[%emt 0:07:10]} Bf5 {[%emt 0:04:14]} 9. g4 {[%emt 0:07:35]} Be4 {[%emt 0:07:03]} 10. Nxe4 {[%emt 0:01:46]} Nxe4 {[%emt 0:00:10]} 11. Qe3 {[%emt 0:03:02]} Nc6 {[%emt 0:05:14]} 12. c3 {[%emt 0:02:34]} Qb6 {[%emt 0:02:57]} 13. O-O-O {[%emt 0:05:59]} Rc8 $11 {[%emt 0:02:51]} 14. c4 {[%emt 0:19:55]} Na5 {[%emt 0:10:24]} 15. b3 {[%emt 0:07:00]} dxc4 {[%emt 0:21:17]} 16. b4 {[%emt 0:01:24]} Qxb4 {[%emt 0:00:45]} 17. Qxe4 {[%emt 0:00:23]} Qc3+ {[%emt 0:00:11]} 18. Kb1 {[%emt 0:04:12]} Rc6 {[%emt 0:01:25]} 19. Bc7 {[%emt 0:00:13]} Rxc7 {[%emt 0:00:41]} 20. Ne5 {[%emt 0:00:43]} O-O {[%emt 0:01:42]} 21. Qc2 {[%emt 0:01:22]} Qb4+ {[%emt 0:01:55]} 22. Qb2 {[%emt 0:00:06]} Qa4 {[%emt 0:00:46]} 23. Qc2 {[%emt 0:01:12]} Qb5+ {[%emt 0:00:09]} 24. Qb2 {[%emt 0:00:22]} Qd5 {[%emt 0:01:01]} 25. Be2 {[%emt 0:00:38]} c3 {[%emt 0:00:49]} 26. Qc2 {[%emt 0:00:39]} Bxe5 {[%emt 0:00:25]} 27. dxe5 {[%emt 0:00:07]} Qxe5 {[%emt 0:00:11]} 28. Rd3 {[%emt 0:00:24]} Nc4 {[%emt 0:01:01]} 0-1

[Event "Polish Youth 1st League 2022"]
[Site "Lublin"]
[Date "2022.07.03"]
[Round "9.27"]
[White "Cieslak, Patryk"]
[Black "Maj, Samuel"]
[Result "1/2-1/2"]
[ECO "B23"]
[WhiteElo "2019"]
[BlackElo "1906"]
[Annotator "NA RC"]
[PlyCount "62"]
[EventDate "2022.06.24"]
[EventType "team-tourn"]
[EventCountry "POL"]
[SourceTitle "playchess.com"]
[Source "ChessBase"]
[SourceQuality "1"]
[TimeControl "40/5400+30:1800+30"]

1. e4 {[%emt 0:00:04]} c5 {[%emt 0:00:02]} 2. Nc3 {[%emt 0:00:06]} d6 {[%emt 0:00:20]} 3. d4 {[%emt 0:00:11]} cxd4 {[%emt 0:00:02]} 4. Qxd4 {[%emt 0:00:06]} Nc6 {[%emt 0:00:04]} 5. Qd2 {[%emt 0:00:05]} g6 {[%emt 0:00:05]} 6. b3 {[%emt 0:00:15]} Bh6 {[%emt 0:00:07]} 7. f4 {[%emt 0:00:11]} Nf6 {[%emt 0:00:08]} 8. Bb2 {[%emt 0:00:11]} O-O {[%emt 0:00:31]} 9. O-O-O {[%emt 0:00:36]} Re8 {[%emt 0:01:19]} 10. g3 {[%emt 0:02:18]} e5 {[%emt 0:02:13]} 11. Bg2 {[%emt 0:03:10]} Bg4 {[%emt 0:05:37]} 12. Bf3 {[%emt 0:01:17]} Bxf3 {[%emt 0:08:20]} 13. Nxf3 {[%emt 0:00:08]} exf4 {[%emt 0:06:08]} 14. Rhe1 {[%emt 0:03:35]} a5 {[%emt 0:04:37]} 15. Nd5 {[%emt 0:10:54]} Ne5 {[%emt 0:11:22]} 16. Nd4 {[%emt 0:07:49]} Nxd5 {[%emt 0:02:15]} 17. exd5 {[%emt 0:00:13]} Qg5 {[%emt 0:03:20]} 18. Nb5 {[%emt 0:06:58]} fxg3 {[%emt 0:09:26]} (18... f3 $19 19. Qxg5 Bxg5+ 20. Kb1 Ng4) 19. Qxg5 $17 {[%emt 0:00:25]} Bxg5+ {[%emt 0:00:02]} 20. Kb1 {[%emt 0:00:11]} Nf3 {[%emt 0:09:57]} 21. Rxe8+ {[%emt 0:00:31]} Rxe8 {[%emt 0:00:03]} 22. hxg3 {[%emt 0:04:49]} Nd2+ {[%emt 0:01:13]} 23. Ka1 {[%emt 0:00:17]} Ne4 {[%emt 0:01:39]} 24. Re1 {[%emt 0:03:12]} Bf6 {[%emt 0:01:53]} 25. Nc3 {[%emt 0:04:04]} Bxc3 {[%emt 0:01:23]} 26. Bxc3 {[%emt 0:00:02]} b6 {[%emt 0:00:55]} 27. Bd4 {[%emt 0:01:19]} b5 {[%emt 0:02:58]} 28. g4 {[%emt 0:05:04]} Nf6 {[%emt 0:05:45]} 29. Rxe8+ {[%emt 0:03:58]} Nxe8 {[%emt 0:00:01]} 30. Bb6 {[%emt 0:00:41]} h5 {[%emt 0:11:51]} 31. gxh5 {[%emt 0:00:34]} gxh5 {[%emt 0:00:47]} 1/2-1/2

[Event "Polish Youth 1st League 2022"]
[Site "Lublin"]
[Date "2022.07.03"]
[Round "9.28"]
[White "Jamrozik, Maciej"]
[Black "Brzezina, Piotr"]
[Result "1/2-1/2"]
[ECO "A59"]
[WhiteElo "1251"]
[BlackElo "1633"]
[Annotator "NA RC"]
[PlyCount "88"]
[EventDate "2022.06.24"]
[EventType "team-tourn"]
[EventCountry "POL"]
[SourceTitle "playchess.com"]
[Source "ChessBase"]
[SourceQuality "1"]
[TimeControl "40/5400+30:1800+30"]

1. d4 {[%emt 0:00:03]} Nf6 {[%emt 0:00:12]} 2. c4 {[%emt 0:00:05]} c5 {[%emt 0:00:13]} 3. d5 {[%emt 0:00:22]} b5 {[%emt 0:00:08]} 4. cxb5 {[%emt 0:01:32]} a6 {[%emt 0:00:06]} 5. bxa6 {[%emt 0:02:54]} Bxa6 {[%emt 0:00:09]} 6. Nc3 {[%emt 0:01:29]} g6 {[%emt 0:00:29]} 7. e4 {[%emt 0:07:13]} Bxf1 {[%emt 0:00:07]} 8. Kxf1 {[%emt 0:00:03]} d6 {[%emt 0:00:13]} 9. g3 {[%emt 0:00:16]} Bg7 {[%emt 0:00:09]} 10. Kg2 {[%emt 0:00:13]} O-O {[%emt 0:00:07]} 11. Nf3 {[%emt 0:00:02]} Nbd7 {[%emt 0:00:32]} 12. Qc2 {[%emt 0:03:48]} Qa5 {[%emt 0:02:09]} 13. Bd2 {[%emt 0:02:36]} Rfb8 {[%emt 0:01:56]} 14. a4 {[%emt 0:17:55]} Ne8 {[%emt 0:11:54]} 15. Nb5 {[%emt 0:07:41]} Qa6 {[%emt 0:01:09]} 16. Bc3 {[%emt 0:00:58]} Nb6 {[%emt 0:03:00]} 17. Bxg7 {[%emt 0:03:26]} Kxg7 {[%emt 0:00:11]} 18. b3 {[%emt 0:01:53]} Rc8 {[%emt 0:03:48]} 19. Nd2 {[%emt 0:03:18]} Nc7 {[%emt 0:05:45]} 20. Nxc7 {[%emt 0:07:17]} Rxc7 {[%emt 0:00:08]} 21. a5 {[%emt 0:00:58]} Nd7 {[%emt 0:00:55]} 22. Nc4 {[%emt 0:00:50]} Rb8 {[%emt 0:01:51]} 23. Rhb1 {[%emt 0:01:39]} Rcb7 {[%emt 0:01:07]} 24. Rb2 {[%emt 0:01:09]} Rb4 {[%emt 0:05:20]} 25. Qc3+ {[%emt 0:04:59]} f6 {[%emt 0:01:17]} 26. h4 {[%emt 0:07:59]} Ne5 {[%emt 0:05:24]} 27. Nxe5 {[%emt 0:02:06]} fxe5 {[%emt 0:00:05]} 28. Ra4 {[%emt 0:01:06]} R8b5 {[%emt 0:06:41]} 29. Qd3 {[%emt 0:04:40]} Rxa4 {[%emt 0:03:00]} 30. bxa4 {[%emt 0:00:30]} Rxa5 {[%emt 0:00:05]} 31. Qxa6 {[%emt 0:00:42]} Rxa6 {[%emt 0:00:01]} 32. Ra2 {[%emt 0:00:13]} Ra5 {[%emt 0:00:49]} 33. Kf3 {[%emt 0:00:08]} Kf6 {[%emt 0:01:31]} 34. Ke3 {[%emt 0:01:22]} e6 {[%emt 0:01:13]} 35. dxe6 {[%emt 0:00:59]} Kxe6 {[%emt 0:00:47]} 36. Kd3 {[%emt 0:01:24]} d5 {[%emt 0:02:15]} 37. exd5+ {[%emt 0:01:06]} Kxd5 {[%emt 0:00:06]} 38. f3 {[%emt 0:00:02]} Ra6 {[%emt 0:02:41]} 39. a5 {[%emt 0:00:34]} Rf6 {[%emt 0:00:21]} 40. Ke3 {[%emt 0:00:00]} Kc4 {[%emt 0:00:00]} 41. a6 {[%emt 0:01:35]} Rf8 {[%emt 0:00:34]} 42. a7 {[%emt 0:00:06]} Ra8 {[%emt 0:00:04]} 43. Ra1 {[%emt 0:05:09]} Kb3 {[%emt 0:12:58]} 44. Kd2 {[%emt 0:02:10]} Rd8+ {[%emt 0:01:28]} 1/2-1/2

[Event "Polish Youth 1st League 2022"]
[Site "Lublin"]
[Date "2022.07.03"]
[Round "9.29"]
[White "Hertlein, Irena"]
[Black "Uliasz, Katarzyna"]
[Result "1-0"]
[ECO "A66"]
[WhiteElo "1873"]
[BlackElo "1526"]
[Annotator "NA RC"]
[PlyCount "129"]
[EventDate "2022.06.24"]
[EventType "team-tourn"]
[EventCountry "POL"]
[SourceTitle "playchess.com"]
[Source "ChessBase"]
[SourceQuality "1"]
[TimeControl "40/5400+30:1800+30"]

1. d4 {[%emt 0:00:02]} Nf6 {[%emt 0:01:46]} 2. c4 {[%emt 0:00:03]} c5 {[%emt 0:00:05]} 3. d5 {[%emt 0:00:10]} e6 {[%emt 0:00:04]} 4. Nc3 {[%emt 0:00:06]} exd5 {[%emt 0:00:06]} 5. cxd5 {[%emt 0:00:04]} d6 {[%emt 0:00:04]} 6. e4 {[%emt 0:00:11]} g6 {[%emt 0:00:04]} 7. f4 {[%emt 0:00:06]} Qe7 {[%emt 0:00:04]} 8. Bd3 {[%emt 0:05:48]} Bg7 {[%emt 0:10:31]} 9. Nf3 {[%emt 0:00:22]} O-O {[%emt 0:03:13]} 10. O-O {[%emt 0:00:22]} Bg4 {[%emt 0:01:27]} 11. Qb3 {[%emt 0:15:31]} Bxf3 {[%emt 0:04:56]} 12. Rxf3 {[%emt 0:00:12]} Rc8 {[%emt 0:10:54]} 13. Bd2 {[%emt 0:16:29]} a6 {[%emt 0:11:40]} 14. a4 {[%emt 0:13:22]} Nbd7 {[%emt 0:05:11]} 15. Re1 {[%emt 0:05:01]} Ng4 {[%emt 0:09:46]} 16. g3 {[%emt 0:02:46]} h5 {[%emt 0:08:40]} 17. h3 {[%emt 0:06:35]} Nh6 {[%emt 0:02:06]} 18. Kg2 {[%emt 0:01:58]} Kh7 {[%emt 0:03:43]} 19. a5 {[%emt 0:10:07]} Rab8 {[%emt 0:00:36]} 20. Na4 {[%emt 0:03:49]} Qd8 {[%emt 0:00:38]} 21. Nb6 {[%emt 0:02:59]} Nxb6 {[%emt 0:00:12]} 22. axb6 {[%emt 0:00:05]} c4 {[%emt 0:01:30]} 23. Bxc4 {[%emt 0:00:19]} Bxb2 {[%emt 0:00:05]} 24. e5 {[%emt 0:08:56]} Bd4 {[%emt 0:02:00]} 25. Ba5 {[%emt 0:02:43]} Rc5 {[%emt 0:01:15]} 26. Bb4 {[%emt 0:00:23]} Qxb6 {[%emt 0:01:09]} 27. Bxc5 {[%emt 0:00:07]} Qxc5 {[%emt 0:00:07]} 28. Bd3 {[%emt 0:03:24]} b5 {[%emt 0:00:43]} 29. e6 {[%emt 0:00:34]} f5 {[%emt 0:00:41]} 30. Re2 {[%emt 0:01:31]} Ng8 {[%emt 0:00:55]} 31. Rc2 {[%emt 0:00:33]} Qa7 {[%emt 0:00:29]} 32. Rf1 {[%emt 0:01:02]} Ne7 {[%emt 0:00:14]} 33. Rfc1 {[%emt 0:00:32]} Rb7 {[%emt 0:00:18]} 34. g4 {[%emt 0:00:41]} Be3 {[%emt 0:00:35]} 35. Rf1 {[%emt 0:00:30]} Qd4 {[%emt 0:00:23]} 36. gxf5 {[%emt 0:00:32]} gxf5 {[%emt 0:00:20]} 37. Kh1 {[%emt 0:00:29]} Nxd5 {[%emt 0:01:48]} 38. Bxf5+ {[%emt 0:00:08]} Kh6 {[%emt 0:00:00]} 39. Rg2 {[%emt 0:00:44]} Nxf4 {[%emt 0:01:33]} 40. Rxf4 {[%emt 0:00:00]} Qxf4 {[%emt 0:00:00]} 41. Qxe3 {[%emt 0:04:37]} Qxe3 {[%emt 0:00:25]} 42. Rg6+ {[%emt 0:00:06]} Kh7 {[%emt 0:00:20]} 43. Rg3+ {[%emt 0:00:03]} Kh8 {[%emt 0:01:14]} 44. Rxe3 {[%emt 0:00:06]} Re7 {[%emt 0:00:14]} 45. Kg2 {[%emt 0:09:46]} Kg7 {[%emt 0:00:24]} 46. Kf3 {[%emt 0:03:03]} Kf6 {[%emt 0:01:18]} 47. Kf4 {[%emt 0:00:23]} h4 {[%emt 0:01:32]} 48. Rd3 {[%emt 0:02:02]} Rc7 {[%emt 0:00:55]} 49. Rxd6 {[%emt 0:04:32]} Rc4+ {[%emt 0:00:58]} 50. Be4 {[%emt 0:03:37]} a5 {[%emt 0:00:56]} 51. Ra6 {[%emt 0:01:33]} a4 {[%emt 0:00:32]} 52. Ke3 {[%emt 0:01:06]} Rc3+ {[%emt 0:06:24]} 53. Kd4 {[%emt 0:00:21]} Rxh3 {[%emt 0:00:20]} 54. Bd5 {[%emt 0:00:07]} Rh2 {[%emt 0:01:03]} 55. Ra7 {[%emt 0:00:10]} Re2 {[%emt 0:00:11]} 56. Rf7+ {[%emt 0:00:13]} Kg5 {[%emt 0:00:54]} 57. Be4 {[%emt 0:00:20]} a3 {[%emt 0:03:22]} 58. e7 {[%emt 0:00:26]} a2 {[%emt 0:00:53]} 59. Rf1 {[%emt 0:00:09]} Rf2 {[%emt 0:01:40]} 60. Ra1 {[%emt 0:00:06]} b4 {[%emt 0:01:04]} 61. e8=Q {[%emt 0:00:09]} b3 {[%emt 0:00:18]} 62. Qg6+ {[%emt 0:00:10]} Kf4 {[%emt 0:00:05]} 63. Qf5+ {[%emt 0:00:03]} Kg3 {[%emt 0:00:07]} 64. Rg1+ {[%emt 0:00:05]} Kh2 {[%emt 0:00:14]} 65. Qxf2+ {[%emt 0:00:14]} 1-0

[Event "Polish Youth 1st League 2022"]
[Site "Lublin"]
[Date "2022.07.03"]
[Round "9.30"]
[White "Tokarz, Gabriela"]
[Black "Duda, Aleksandra"]
[Result "0-1"]
[ECO "D35"]
[WhiteElo "1469"]
[BlackElo "1453"]
[Annotator "NA RC"]
[PlyCount "124"]
[EventDate "2022.06.24"]
[EventType "team-tourn"]
[EventCountry "POL"]
[SourceTitle "playchess.com"]
[Source "ChessBase"]
[SourceQuality "1"]
[TimeControl "40/5400+30:1800+30"]

1. d4 {[%emt 0:00:03]} d5 {[%emt 0:00:06]} 2. c4 {[%emt 0:00:08]} e6 {[%emt 0:00:04]} 3. Nc3 {[%emt 0:00:03]} Nf6 {[%emt 0:00:05]} 4. cxd5 {[%emt 0:00:10]} exd5 {[%emt 0:00:07]} 5. Bg5 {[%emt 0:00:04]} c6 {[%emt 0:00:16]} 6. e3 {[%emt 0:00:04]} Be7 {[%emt 0:00:36]} 7. Bd3 {[%emt 0:00:13]} O-O {[%emt 0:00:32]} 8. Qc2 {[%emt 0:00:06]} h6 {[%emt 0:00:25]} 9. Bh4 {[%emt 0:00:12]} Re8 {[%emt 0:00:57]} 10. Nge2 {[%emt 0:00:16]} Nbd7 {[%emt 0:00:45]} 11. O-O {[%emt 0:00:25]} Ne4 {[%emt 0:00:35]} 12. Bxe7 {[%emt 0:00:16]} Qxe7 {[%emt 0:00:06]} 13. Rab1 {[%emt 0:02:29]} a5 {[%emt 0:00:11]} 14. a3 b5 {[%emt 0:00:15]} 15. Ng3 {[%emt 0:03:53]} Nd6 {[%emt 0:01:34]} 16. b3 {[%emt 0:04:24]} Nb6 {[%emt 0:05:05]} 17. Nce2 {[%emt 0:05:16]} Bb7 {[%emt 0:01:38]} 18. Nf4 {[%emt 0:01:57]} a4 {[%emt 0:02:26]} 19. b4 {[%emt 0:00:22]} Nbc4 {[%emt 0:01:16]} 20. Bxc4 {[%emt 0:00:59]} Nxc4 {[%emt 0:00:45]} 21. Ra1 {[%emt 0:03:21]} Rad8 {[%emt 0:06:34]} 22. Qe2 {[%emt 0:01:34]} Qg5 {[%emt 0:05:09]} 23. Rfc1 {[%emt 0:07:38]} Rd7 {[%emt 0:05:41]} 24. Rc2 {[%emt 0:05:32]} f5 {[%emt 0:07:07]} 25. Qf3 {[%emt 0:04:58]} Rf7 {[%emt 0:06:14]} 26. Nge2 {[%emt 0:05:57]} Qf6 {[%emt 0:10:10]} 27. g3 {[%emt 0:06:06]} g5 {[%emt 0:02:24]} 28. Nd3 {[%emt 0:01:00]} Rfe7 {[%emt 0:00:46]} 29. Nc5 {[%emt 0:01:28]} Bc8 {[%emt 0:04:46]} 30. Raa2 {[%emt 0:04:10]} Kh7 {[%emt 0:05:37]} 31. Kh1 {[%emt 0:02:45]} Qg6 {[%emt 0:07:48]} 32. Rc1 {[%emt 0:01:36]} h5 {[%emt 0:03:41]} 33. Rg1 {[%emt 0:01:18]} Qh6 {[%emt 0:07:20]} 34. Nd3 {[%emt 0:07:00]} Nxe3 {[%emt 0:02:59]} 35. Ne5 {[%emt 0:03:44]} Nc4 {[%emt 0:01:00]} 36. Nxc4 {[%emt 0:01:11]} dxc4 {[%emt 0:00:13]} 37. Nc3 {[%emt 0:00:56]} g4 {[%emt 0:02:09]} 38. Qd1 {[%emt 0:01:03]} Bb7 {[%emt 0:00:59]} 39. Rd2 {[%emt 0:02:12]} h4 {[%emt 0:01:09]} 40. Rf1 {[%emt 0:00:00]} hxg3 {[%emt 0:00:00]} 41. fxg3 {[%emt 0:01:36]} Re3 {[%emt 0:02:11]} 42. Qc2 {[%emt 0:00:52]} Bc8 {[%emt 0:01:12]} 43. Kg1 {[%emt 0:01:00]} Kg7 {[%emt 0:01:26]} 44. d5 {[%emt 0:02:38]} Qf6 {[%emt 0:05:12]} 45. Nd1 {[%emt 0:07:14]} Rxa3 {[%emt 0:07:07]} 46. dxc6 {[%emt 0:01:33]} Rd3 {[%emt 0:01:59]} 47. Rxd3 {[%emt 0:03:42]} cxd3 {[%emt 0:00:06]} 48. Qxd3 {[%emt 0:00:24]} Qxc6 {[%emt 0:00:37]} 49. Qd2 {[%emt 0:00:26]} Qb6+ {[%emt 0:02:15]} 50. Nf2 {[%emt 0:00:16]} Qe3 {[%emt 0:01:24]} 51. Qd5 {[%emt 0:01:50]} Qe5 {[%emt 0:01:37]} 52. Qd2 {[%emt 0:02:07]} Kg6 {[%emt 0:00:40]} 53. Rc1 {[%emt 0:00:48]} Bb7 {[%emt 0:00:37]} 54. Nd3 {[%emt 0:02:31]} Qe3+ {[%emt 0:00:54]} 55. Qxe3 {[%emt 0:00:14]} Rxe3 {[%emt 0:00:02]} 56. Nf4+ {[%emt 0:00:17]} Kf6 {[%emt 0:01:24]} 57. Rc7 {[%emt 0:02:34]} Bf3 {[%emt 0:00:58]} 58. Rc5 {[%emt 0:01:00]} a3 {[%emt 0:01:16]} 59. Rc1 {[%emt 0:00:51]} Rb3 {[%emt 0:01:01]} 60. Ra1 {[%emt 0:00:18]} Be4 {[%emt 0:01:41]} 61. Ne2 {[%emt 0:00:38]} Rb1+ {[%emt 0:03:02]} 62. Rxb1 {[%emt 0:00:13]} Bxb1 {[%emt 0:00:01]} 0-1